fUST/lending_fUST_20240829
["ID","MTS","AMOUNT","RATE_DAILY","PERIOD"]
[336539579,1724928648867,-500.0,0.00019178,2]
[336539580,1724928648879,-500.0,0.00019178,2]
[336539581,1724928648889,-3564.36,0.00019178,2]
[336539582,1724928648899,-853.53,0.00019178,2]
[336539583,1724928648908,-500.0,0.00019178,2]
[336539584,1724928648918,-500.0,0.00019178,2]
[336539585,1724928648928,-500.0,0.00019178,2]
[336539586,1724928648938,-500.0,0.00019178,2]
[336539587,1724928648947,-500.0,0.00019178,2]
[336539588,1724928648957,-500.0,0.00019178,2]
[336539589,1724928648966,-500.0,0.00019178,2]
[336539590,1724928648975,-675.24,0.00019178,2]
[336539591,1724928648986,-500.0,0.00019178,2]
[336539592,1724928648997,-500.0,0.00019178,2]
[336539593,1724928649007,-500.0,0.00019178,2]
[336539594,1724928649016,-500.0,0.00019178,2]
[336539595,1724928649028,-500.0,0.00019178,2]
[336539596,1724928649037,-503.0918291,0.00019178,2]
[336539597,1724928649046,-500.8195904,0.00019178,2]
[336539598,1724928649056,-500.0,0.00019178,2]
[336539599,1724928649067,-500.0,0.00019178,2]
[336539600,1724928649078,-500.0,0.00019178,2]
[336539601,1724928649089,-500.0,0.00019178,2]
[336539602,1724928649099,-655.39,0.00019178,2]
[336539603,1724928649109,-500.0,0.00019178,2]
[336539604,1724928649121,-500.0,0.00019178,2]
[336539605,1724928649130,-500.0,0.00019178,2]
[336539606,1724928649139,-500.0,0.00019178,2]
[336539607,1724928649151,-1980.84,0.00019178,2]
[336539608,1724928649160,-500.0,0.00019178,2]
[336539609,1724928649170,-500.0,0.00019178,2]
[336539610,1724928649179,-500.0,0.00019178,2]
[336539611,1724928649189,-500.0,0.00019178,2]
[336539612,1724928649200,-500.0,0.00019178,2]
[336539613,1724928649209,-1538.99,0.00019178,2]
[336539614,1724928649218,-501.49613805,0.00019178,2]
[336539615,1724928649228,-508.6468373,0.00019178,2]
[336539616,1724928649240,-883.13,0.00019178,2]
[336539617,1724928649253,-503.6661752,0.00019178,2]
[336539618,1724928649263,-500.0,0.00019178,2]
[336539619,1724928649272,-500.0,0.00019178,2]
[336539620,1724928649284,-500.0,0.00019178,2]
[336539621,1724928649294,-500.0,0.00019178,2]
[336539622,1724928649304,-500.0,0.00019178,2]
[336539623,1724928649314,-500.0,0.00019178,2]
[336539624,1724928649323,-500.0,0.00019178,2]
[336539625,1724928649333,-500.0,0.00019178,2]
[336539626,1724928649343,-500.0,0.00019178,2]
[336539627,1724928649353,-2633.83,0.00019178,2]
[336539628,1724928649362,-162.378984,0.00019178,2]
[336539629,1724928649372,-151.0,0.00019273,2]
[336539630,1724928649381,-151.0,0.00019273,2]
[336539631,1724928649391,-524.146,0.00019314,2]
[336539632,1724928649402,-1127.43876888,0.00019352,2]
[336539633,1724928649412,-404.6,0.00019441,2]
[336539634,1724928649422,-309.18440417,0.00019441,2]
[336539635,1724928649431,-151.0,0.00019442,2]
[336539636,1724928649441,-151.0,0.00019442,2]
[336539637,1724928649450,-151.0,0.00019442,2]
[336539638,1724928649459,-151.0,0.00019442,2]
[336539639,1724928649469,-151.0,0.00019442,2]
[336539640,1724928649480,-388.427152,0.00019442,2]
[336539641,1724928649490,-388.427152,0.00019442,2]
[336539642,1724928649500,-151.0,0.00019442,2]
[336539643,1724928649511,-151.0,0.00019442,2]
[336539644,1724928649521,-151.0,0.00019442,2]
[336539645,1724928649530,-166.068737,0.00019442,2]
[336539646,1724928649539,-151.0,0.00019442,2]
[336539647,1724928649549,-151.0,0.00019442,2]
[336539648,1724928649558,-151.0,0.00019442,2]
[336539649,1724928649568,-75339.7280564,0.00019442,2]
[336539650,1724928649578,-292.39856641,0.00019451,2]
[336539651,1724928649587,-500.0,0.00019452,2]
[336539652,1724928649597,-500.0,0.00019452,2]
[336539653,1724928649607,-523.37772046,0.00019452,2]
[336539654,1724928649617,-500.0,0.00019452,2]
[336539655,1724928649627,-500.0,0.00019452,2]
[336539656,1724928649637,-500.0,0.00019452,2]
[336539657,1724928649646,-500.0,0.00019452,2]
[336539658,1724928649656,-500.0,0.00019452,2]
[336539659,1724928649666,-500.0,0.00019452,2]
[336539660,1724928649675,-500.0,0.00019452,2]
[336539661,1724928649684,-500.0,0.00019452,2]
[336539662,1724928649694,-500.0,0.00019452,2]
[336539663,1724928649704,-500.0,0.00019452,2]
[336539664,1724928649713,-500.0,0.00019452,2]
[336539665,1724928649723,-500.0,0.00019452,2]
[336539666,1724928649732,-500.0,0.00019452,2]
[336539667,1724928649742,-500.0,0.00019452,2]
[336539668,1724928649751,-500.0,0.00019452,2]
[336539669,1724928649763,-306.99816537,0.00019452,2]
[336539670,1724928649772,-500.0,0.00019452,2]
[336539671,1724928649782,-500.0,0.00019452,2]
[336539672,1724928649792,-500.0,0.00019452,2]
[336539673,1724928649802,-500.0,0.00019452,2]
[336539674,1724928649811,-500.0,0.00019452,2]
[336539675,1724928649821,-500.0,0.00019452,2]
[336539676,1724928649832,-151.0,0.00019452,2]
[336539677,1724928649842,-500.0,0.00019452,2]
[336539678,1724928649852,-500.0,0.00019452,2]
[336539679,1724928649862,-500.0,0.00019452,2]
[336539680,1724928649873,-500.0,0.00019452,2]
[336539681,1724928649882,-500.0,0.00019452,2]
[336539682,1724928649893,-500.0,0.00019452,2]
[336539683,1724928649904,-500.0,0.00019452,2]
[336539684,1724928649914,-151.0,0.00019452,2]
[336539685,1724928649923,-500.0,0.00019452,2]
[336539686,1724928649933,-500.0,0.00019452,2]
[336539687,1724928649944,-151.0,0.00019452,2]
[336539688,1724928649954,-500.0,0.00019452,2]
[336539689,1724928649963,-3784.09,0.00019452,2]
[336539690,1724928649973,-500.0,0.00019452,2]
[336539691,1724928649983,-500.0,0.00019452,2]
[336539692,1724928649992,-228.798158,0.00019452,2]
[336539693,1724928650001,-500.0,0.00019452,2]
[336539694,1724928650011,-151.0,0.00019452,2]
[336539695,1724928650021,-500.0,0.00019452,2]
[336539696,1724928650031,-500.0,0.00019452,2]
[336539697,1724928650041,-2069.45,0.00019452,2]
[336539698,1724928650050,-500.0,0.00019452,2]
[336539699,1724928650061,-500.0,0.00019452,2]
[336539700,1724928650072,-1234.7,0.00019452,2]
[336539701,1724928650083,-1676.03,0.00019452,2]
[336539702,1724928650094,-500.0,0.00019452,2]
[336539703,1724928650103,-500.0,0.00019452,2]
[336539704,1724928650112,-500.0,0.00019452,2]
[336539705,1724928650124,-388.427152,0.00019452,2]
[336539706,1724928650136,-500.0,0.00019452,2]
[336539707,1724928650146,-388.427152,0.00019452,2]
[336539708,1724928650161,-500.0,0.00019452,2]
[336539709,1724928650170,-500.0,0.00019452,2]
[336539710,1724928650181,-500.0,0.00019452,2]
[336539711,1724928650192,-500.0,0.00019452,2]
[336539712,1724928650203,-500.0,0.00019452,2]
[336539713,1724928650213,-500.0,0.00019452,2]
[336539714,1724928650223,-500.0,0.00019452,2]
[336539715,1724928650235,-500.0,0.00019452,2]
[336539716,1724928650247,-1661.97,0.00019452,2]
[336539717,1724928650258,-500.0,0.00019452,2]
[336539718,1724928650269,-500.0,0.00019452,2]
[336539719,1724928650279,-9887.81,0.00019452,2]
[336539720,1724928650290,-500.0,0.00019452,2]
[336539721,1724928650300,-6525.14,0.00019452,2]
[336539722,1724928650309,-500.0,0.00019452,2]
[336539723,1724928650318,-500.0,0.00019452,2]
[336539724,1724928650328,-500.0,0.00019452,2]
[336539725,1724928650338,-500.0,0.00019452,2]
[336539726,1724928650347,-808.87,0.00019452,2]
[336539727,1724928650357,-500.0,0.00019452,2]
[336539728,1724928650366,-500.0,0.00019452,2]
[336539729,1724928650376,-500.0,0.00019452,2]
[336539730,1724928650385,-1142.0,0.00019452,2]
[336539731,1724928650394,-500.0,0.00019452,2]
[336539732,1724928650403,-500.0,0.00019452,2]
[336539733,1724928650413,-500.0,0.00019452,2]
[336539734,1724928650423,-500.0,0.00019452,2]
[336539735,1724928650433,-500.0,0.00019452,2]
[336539736,1724928650442,-500.0,0.00019452,2]
[336539737,1724928650452,-500.0,0.00019452,2]
[336539738,1724928650462,-500.0,0.00019452,2]
[336539739,1724928650471,-1805.87,0.00019452,2]
[336539740,1724928650481,-500.0,0.00019452,2]
[336539741,1724928650490,-611.2,0.00019452,2]
[336539742,1724928650500,-793.65,0.00019452,2]
[336539743,1724928650510,-500.0,0.00019452,2]
[336539744,1724928650519,-500.0,0.00019452,2]
[336539745,1724928650530,-546.16,0.00019452,2]
[336539746,1724928650539,-151.0,0.00019452,2]
[336539747,1724928650549,-500.0,0.00019452,2]
[336539748,1724928650559,-176.204784,0.00019452,2]
[336539749,1724928650569,-614.8,0.00019452,2]
[336539750,1724928650579,-500.0,0.00019452,2]
[336539751,1724928650592,-500.0,0.00019452,2]
[336539752,1724928650601,-500.0,0.00019452,2]
[336539753,1724928650610,-500.0,0.00019452,2]
[336539754,1724928650619,-1534.35,0.00019452,2]
[336539755,1724928650629,-500.0,0.00019452,2]
[336539756,1724928650638,-500.0,0.00019452,2]
[336539757,1724928650647,-500.0,0.00019452,2]
[336539758,1724928650656,-227.72356117,0.00019452,2]
[336539759,1724928650666,-500.0,0.00019452,2]
[336539760,1724928650676,-500.0,0.00019452,2]
[336539761,1724928650685,-500.0,0.00019452,2]
[336539762,1724928650695,-588.73,0.00019452,2]
[336539763,1724928650707,-500.0,0.00019452,2]
[336539764,1724928650716,-1407.0,0.00019452,2]
[336539765,1724928650727,-151.0,0.00019452,2]
[336539766,1724928650737,-698.17,0.00019452,2]
[336539767,1724928650748,-2347.993808,0.00019452,2]
[336539768,1724928650760,-21239.44,0.00019452,2]
[336539769,1724928650770,-500.0,0.00019452,2]
[336539770,1724928650782,-500.0,0.00019452,2]
[336539771,1724928650792,-708.19,0.00019452,2]
[336539772,1724928650802,-500.0,0.00019452,2]
[336539773,1724928650811,-505.33141872,0.00019452,2]
[336539774,1724928650820,-3564.36,0.00019452,2]
[336539775,1724928650830,-853.53,0.00019452,2]
[336539776,1724928650839,-500.0,0.00019452,2]
[336539777,1724928650849,-675.24,0.00019452,2]
[336539778,1724928650858,-151.0,0.00019452,2]
[336539779,1724928650868,-192.855905,0.00019452,2]
[336539780,1724928650878,-500.0,0.00019452,2]
[336539781,1724928650888,-151.0,0.00019452,2]
[336539782,1724928650899,-500.0,0.00019452,2]
[336539783,1724928650909,-151.0,0.00019452,2]
[336539784,1724928650918,-500.0,0.00019452,2]
[336539785,1724928650927,-500.0,0.00019452,2]
[336539786,1724928650937,-500.0,0.00019452,2]
[336539787,1724928650948,-655.39,0.00019452,2]
[336539788,1724928650958,-500.0,0.00019452,2]
[336539789,1724928650968,-500.0,0.00019452,2]
[336539790,1724928650980,-500.0,0.00019452,2]
[336539791,1724928650991,-1980.84,0.00019452,2]
[336539792,1724928651001,-500.0,0.00019452,2]
[336539793,1724928651012,-500.0,0.00019452,2]
[336539794,1724928651022,-151.0,0.00019452,2]
[336539795,1724928651032,-1538.99,0.00019452,2]
[336539796,1724928651042,-883.13,0.00019452,2]
[336539797,1724928651051,-500.0,0.00019452,2]
[336539798,1724928651061,-500.0,0.00019452,2]
[336539799,1724928651072,-500.0,0.00019452,2]
[336539800,1724928651084,-500.0,0.00019452,2]
[336539801,1724928651095,-500.0,0.00019452,2]
[336539802,1724928651105,-500.0,0.00019473,2]
[336539803,1724928651117,-500.0,0.00019473,2]
[336539804,1724928651128,-151.0,0.00019482,2]
[336539805,1724928651138,-150.30127527,0.0001964,2]
[336539806,1724928651149,-151.0,0.00019716,2]
[336539807,1724928651162,-25113.2426855,0.00019716,2]
[336539808,1724928651171,-500.0,0.00019726,2]
[336539809,1724928651181,-464.33776618,0.00019726,2]
[336539810,1724928651190,-151.0,0.00019726,2]
[336539811,1724928651201,-500.0,0.00019726,2]
[336539812,1724928651210,-500.0,0.00019726,2]
[336539813,1724928651220,-581.01096836,0.00019726,2]
[336539814,1724928651232,-500.0,0.00019726,2]
[336539815,1724928651243,-500.0,0.00019726,2]
[336539816,1724928651253,-500.0,0.00019726,2]
[336539817,1724928651263,-380.53186731,0.00019726,2]
[336539818,1724928651394,-500.0,0.00019726,2]
[336539819,1724928651407,-500.0,0.00019726,2]
[336539820,1724928651418,-500.0,0.00019726,2]
[336539821,1724928651427,-500.0,0.00019726,2]
[336539822,1724928651437,-500.0,0.00019726,2]
[336539823,1724928651446,-151.0,0.00019726,2]
[336539824,1724928651456,-500.0,0.00019726,2]
[336539825,1724928651465,-500.0,0.00019726,2]
[336539826,1724928651475,-500.0,0.00019726,2]
[336539827,1724928651485,-151.0,0.00019726,2]
[336539828,1724928651495,-500.0,0.00019726,2]
[336539829,1724928651505,-500.0,0.00019726,2]
[336539830,1724928651514,-500.0,0.00019726,2]
[336539831,1724928651524,-500.0,0.00019726,2]
[336539832,1724928651533,-500.0,0.00019726,2]
[336539833,1724928651542,-500.0,0.00019726,2]
[336539834,1724928651552,-500.0,0.00019726,2]
[336539835,1724928651562,-500.0,0.00019726,2]
[336539836,1724928651571,-500.0,0.00019726,2]
[336539837,1724928651581,-151.0,0.00019726,2]
[336539838,1724928651591,-500.0,0.00019726,2]
[336539839,1724928651600,-3784.09,0.00019726,2]
[336539840,1724928651610,-500.0,0.00019726,2]
[336539841,1724928651620,-500.0,0.00019726,2]
[336539842,1724928651630,-269.403365,0.00019726,2]
[336539843,1724928651640,-500.0,0.00019726,2]
[336539844,1724928651649,-500.0,0.00019726,2]
[336539845,1724928651659,-2069.45,0.00019726,2]
[336539846,1724928651668,-500.0,0.00019726,2]
[336539847,1724928651678,-500.0,0.00019726,2]
[336539848,1724928651687,-1234.7,0.00019726,2]
[336539849,1724928651696,-1676.03,0.00019726,2]
[336539850,1724928651706,-500.0,0.00019726,2]
[336539851,1724928651715,-500.0,0.00019726,2]
[336539852,1724928651725,-500.0,0.00019726,2]
[336539853,1724928651735,-388.427152,0.00019726,2]
[336539854,1724928651744,-500.0,0.00019726,2]
[336539855,1724928651754,-388.427152,0.00019726,2]
[336539856,1724928651763,-502.65638944,0.00019726,2]
[336539857,1724928651773,-500.0,0.00019726,2]
[336539858,1724928651782,-500.0,0.00019726,2]
[336539859,1724928651792,-500.0,0.00019726,2]
[336539860,1724928651802,-500.0,0.00019726,2]
[336539861,1724928651811,-500.0,0.00019726,2]
[336539862,1724928651821,-1661.97,0.00019726,2]
[336539863,1724928651831,-500.0,0.00019726,2]
[336539864,1724928651840,-500.0,0.00019726,2]
[336539865,1724928651849,-9887.81,0.00019726,2]
[336539866,1724928651859,-6525.14,0.00019726,2]
[336539867,1724928651869,-500.0,0.00019726,2]
[336539868,1724928651878,-500.0,0.00019726,2]
[336539869,1724928651888,-500.0,0.00019726,2]
[336539870,1724928651898,-500.0,0.00019726,2]
[336539871,1724928651908,-808.87,0.00019726,2]
[336539872,1724928651917,-500.0,0.00019726,2]
[336539873,1724928651926,-298.5766803,0.00019726,2]
[336539874,1724928652175,-201.4233197,0.00019726,2]
[336539875,1724928652185,-334.26472694,0.00019726,2]
[336539908,1724929619153,-294.234758,0.00014247,2]
[336539909,1724929619181,-174.9797707,0.0001815,2]
[336539910,1724929619205,-160.0,0.000189,3]
[336539911,1724929619230,-202.453267,0.00018904,2]
[336539912,1724929619254,-200.42,0.00019,2]
[336539913,1724929619284,-5974.54285546,0.00019078,2]
[336539914,1724929619326,-300.0,0.00019167,2]
[336539915,1724929619356,-318.98,0.00019168,3]
[336539916,1724929619387,-631.51053815,0.00019168,2]
[336539917,1724929628120,-241.68650409,0.00019078,2]
[336539918,1724929633101,-263.87291494,0.00019078,2]
[336539927,1724929831729,-192.330603,0.00018904,2]
[336539928,1724929831740,-27.71677354,0.00019078,2]
[336539929,1724929831750,-300.0,0.00019167,2]
[336539930,1724929831759,-12691.8808045,0.00019168,2]
[336539931,1724929831769,-500.0,0.00019178,2]
[336539932,1724929831779,-1410.75,0.00019178,2]
[336539933,1724929831788,-500.0,0.00019178,2]
[336539934,1724929831797,-501.11961492,0.00019178,2]
[336539935,1724929831807,-500.0,0.00019178,2]
[336539936,1724929831818,-500.0,0.00019178,2]
[336539938,1724929831828,-500.0,0.00019178,2]
[336539940,1724929831838,-500.0,0.00019178,2]
[336539943,1724929831848,-500.0,0.00019178,2]
[336539945,1724929831858,-500.0,0.00019178,2]
[336539947,1724929831873,-500.0,0.00019178,2]
[336539948,1724929831886,-500.0,0.00019178,2]
[336539949,1724929831896,-500.0,0.00019178,2]
[336539950,1724929831907,-500.0,0.00019178,2]
[336539952,1724929831918,-500.0,0.00019178,2]
[336539953,1724929831927,-376.53477504,0.00019178,2]
[336540110,1724930828162,-303.956493,0.00014247,2]
[336540111,1724930828186,-207.4305018,0.00018154,2]
[336540112,1724930828209,-182.714072,0.00018904,2]
[336540113,1724930828231,-60.27819671,0.00018994,2]
[336540117,1724930834100,-358.3684523,0.00018994,2]
[336540133,1724931003205,149.999999,0.00012111,2]
[336540151,1724931032071,-173.578368,0.00018904,2]
[336540152,1724931032081,-56.19697546,0.00018994,2]
[336540153,1724931032096,-737.19184365,0.00019,2]
[336540154,1724931032106,-300.0,0.00019077,2]
[336540155,1724931032115,-5227.72499851,0.00019078,2]
[336540156,1724931032124,-426.62095408,0.00019078,2]
[336540157,1724931032133,-5302.7081486,0.00019168,2]
[336540194,1724931038124,-6754.5786157,0.00019168,2]
[336540195,1724931038134,-209.11165941,0.00019178,5]
[336540196,1724931038143,-515.21585056,0.00019178,2]
[336540197,1724931038153,-429.53397164,0.00019178,2]
[336540198,1724931038163,-500.0,0.00019178,2]
[336540199,1724931038173,-500.0,0.00019178,2]
[336540200,1724931038182,-500.0,0.00019178,2]
[336540201,1724931038193,-500.0,0.00019178,2]
[336540202,1724931038203,-500.0,0.00019178,2]
[336540203,1724931038213,-500.0,0.00019178,2]
[336540204,1724931038223,-500.0,0.00019178,2]
[336540205,1724931038233,-401.72754242,0.00019178,2]
[336540206,1724931038242,-500.0,0.00019178,2]
[336540207,1724931038252,-500.0,0.00019178,2]
[336540208,1724931038262,-495.40667807,0.00019178,2]
[336540209,1724931038271,-500.0,0.00019178,2]
[336540210,1724931038281,-500.0,0.00019178,2]
[336540211,1724931038291,-503.50000001,0.00019178,2]
[336540212,1724931038300,-502.93306248,0.00019178,2]
[336540213,1724931038310,-162.07456251,0.00019178,2]
[336540214,1724931038319,-70.79990303,0.00019178,2]
[336540215,1724931038462,-429.20009697,0.00019178,2]
[336540216,1724931038472,-500.0,0.00019178,2]
[336540217,1724931038484,-214.61384319,0.00019178,2]
[336540218,1724931038494,-285.98338257,0.00019178,2]
[336540219,1724931038507,-239.82872567,0.00019178,2]
[336540220,1724931038517,-209.23929057,0.00019178,2]
[336540221,1724931038526,-500.0,0.00019178,2]
[336540222,1724931038536,-329.53829518,0.00019178,2]
[336540223,1724931038546,-500.0,0.00019178,2]
[336540224,1724931038555,-500.0,0.00019178,2]
[336540225,1724931038565,-504.47507443,0.00019178,2]
[336540226,1724931038736,-500.0,0.00019178,2]
[336540229,1724931038746,-636.68612694,0.00019178,2]
[336540230,1724931038756,-500.0,0.00019178,2]
[336540232,1724931038766,-500.0,0.00019178,2]
[336540234,1724931038776,-500.0,0.00019178,2]
[336540236,1724931038785,-501.89802376,0.00019178,2]
[336540238,1724931038798,-331.87234721,0.00019178,2]
[336540239,1724931038808,-501.98943409,0.00019178,2]
[336540241,1724931038818,-500.0,0.00019178,2]
[336540243,1724931038827,-500.0,0.00019178,2]
[336540244,1724931038838,-500.0,0.00019178,2]
[336540246,1724931038848,-500.0,0.00019178,2]
[336540248,1724931038859,-500.0,0.00019178,2]
[336540250,1724931038871,-500.0,0.00019178,2]
[336540252,1724931038882,-500.0,0.00019178,2]
[336540253,1724931038892,-500.0,0.00019178,2]
[336540255,1724931038903,-500.0,0.00019178,2]
[336540257,1724931038916,-500.0,0.00019178,2]
[336540259,1724931038927,-500.0,0.00019178,2]
[336540261,1724931038938,-500.0,0.00019178,2]
[336540263,1724931038949,-500.0,0.00019178,2]
[336540264,1724931038962,-500.0,0.00019178,2]
[336540265,1724931038973,-500.0,0.00019178,2]
[336540266,1724931038982,-501.41923426,0.00019178,2]
[336540267,1724931038993,-500.0,0.00019178,2]
[336540268,1724931039005,-500.0,0.00019178,2]
[336540269,1724931039018,-500.0,0.00019178,2]
[336540271,1724931039027,-500.0,0.00019178,2]
[336540272,1724931039037,-500.34472066,0.00019178,2]
[336540273,1724931039047,-149.29421061,0.00019178,2]
[336540274,1724931039060,-350.70578939,0.00019178,2]
[336540275,1724931039070,-233.25988153,0.00019178,2]
[336540276,1724931039081,-500.0,0.00019178,2]
[336540277,1724931039090,-500.0,0.00019178,2]
[336540278,1724931039104,-500.0,0.00019178,2]
[336540279,1724931039116,-500.0,0.00019178,2]
[336540281,1724931039125,-500.0,0.00019178,2]
[336540283,1724931039135,-500.0,0.00019178,2]
[336540285,1724931039146,-500.0,0.00019178,2]
[336540287,1724931039156,-500.0,0.00019178,2]
[336540288,1724931039166,-500.0,0.00019178,2]
[336540290,1724931039177,-500.0,0.00019178,2]
[336540292,1724931039186,-500.0,0.00019178,2]
[336540294,1724931039196,-504.18346549,0.00019178,2]
[336540296,1724931039205,-618.97,0.00019178,2]
[336540298,1724931039215,-500.0,0.00019178,2]
[336540300,1724931039226,-502.43,0.00019178,2]
[336540302,1724931039237,-500.0,0.00019178,2]
[336540304,1724931039249,-1489.32443415,0.00019178,2]
[336540305,1724931039263,-321.44556585,0.00019178,2]
[336540307,1724931039274,-3311.08,0.00019178,2]
[336540308,1724931039283,-2427.77,0.00019178,2]
[336540310,1724931039293,-260.97680932,0.00019178,2]
[336540311,1724931039303,-2524.09,0.00019178,2]
[336540312,1724931039314,-500.0,0.00019178,2]
[336540313,1724931039326,-1715.91,0.00019178,2]
[336540314,1724931039337,-500.0,0.00019178,2]
[336540315,1724931039350,-4891.12,0.00019178,2]
[336540316,1724931039360,-500.0,0.00019178,2]
[336540317,1724931039369,-1587.69,0.00019178,2]
[336540318,1724931039380,-581.91,0.00019178,2]
[336540319,1724931039390,-500.0,0.00019178,2]
[336540320,1724931039400,-500.0,0.00019178,2]
[336540321,1724931039411,-500.0,0.00019178,2]
[336540322,1724931039422,-454.89292711,0.00019178,2]
[336540323,1724931039432,-500.0,0.00019178,2]
[336540324,1724931039442,-7167.83,0.00019178,2]
[336540325,1724931039454,-500.0,0.00019178,2]
[336540326,1724931039465,-500.0,0.00019178,2]
[336540327,1724931039477,-500.64,0.00019178,2]
[336540328,1724931039487,-500.0,0.00019178,2]
[336540329,1724931039497,-500.0,0.00019178,2]
[336540330,1724931039508,-165.91624243,0.00019178,2]
[336540331,1724931039523,-12497.44375757,0.00019178,2]
[336540332,1724931039533,-500.0,0.00019178,2]
[336540333,1724931039542,-500.0,0.00019178,2]
[336540334,1724931039553,-500.0,0.00019178,2]
[336540335,1724931039562,-500.0,0.00019178,2]
[336540337,1724931039572,-2717.02,0.00019178,2]
[336540339,1724931039582,-1789.83,0.00019178,2]
[336540340,1724931039593,-1641.73,0.00019178,2]
[336540341,1724931039607,-2019.47,0.00019178,2]
[336540342,1724931039616,-1673.30432281,0.00019178,2]
[336540343,1724931039626,-500.0,0.00019178,2]
[336540344,1724931039638,-501.9532307,0.00019178,2]
[336540345,1724931039649,-500.0,0.00019178,2]
[336540346,1724931039660,-500.0,0.00019178,2]
[336540347,1724931039671,-500.0,0.00019178,2]
[336540348,1724931039682,-500.0,0.00019178,2]
[336540349,1724931039693,-1046.83,0.00019178,2]
[336540350,1724931039702,-500.0,0.00019178,2]
[336540351,1724931039712,-539.67,0.00019178,2]
[336540352,1724931039722,-500.0,0.00019178,2]
[336540353,1724931039732,-500.0,0.00019178,2]
[336540354,1724931039742,-1406.49,0.00019178,2]
[336540355,1724931039755,-563.56,0.00019178,2]
[336540357,1724931039766,-500.0,0.00019178,2]
[336540359,1724931039775,-500.0,0.00019178,2]
[336540360,1724931039786,-500.0,0.00019178,2]
[336540361,1724931039796,-500.0,0.00019178,2]
[336540363,1724931039808,-500.0,0.00019178,2]
[336540365,1724931039818,-1289.75,0.00019178,2]
[336540367,1724931039831,-598.45373998,0.00019178,2]
[336540369,1724931039841,-500.0,0.00019178,2]
[336540371,1724931039853,-639.99,0.00019178,2]
[336540373,1724931039865,-500.0,0.00019178,2]
[336540374,1724931039876,-500.0,0.00019178,2]
[336540375,1724931039886,-500.0,0.00019178,2]
[336540376,1724931039900,-500.0,0.00019178,2]
[336540377,1724931039910,-1171.26,0.00019178,2]
[336540378,1724931039924,-3783.44,0.00019178,2]
[336540379,1724931039934,-500.0,0.00019178,2]
[336540380,1724931039945,-26780.39,0.00019178,2]
[336540381,1724931039955,-500.0,0.00019178,2]
[336540382,1724931039965,-232.04200444,0.00019178,2]
[336540383,1724931039976,-500.0,0.00019178,2]
[336540384,1724931039987,-500.0,0.00019178,2]
[336540385,1724931039999,-649.18,0.00019178,2]
[336540386,1724931040010,-600.77,0.00019178,2]
[336540387,1724931040020,-1351.96,0.00019178,2]
[336540388,1724931040030,-500.0,0.00019178,2]
[336540389,1724931040039,-500.0,0.00019178,2]
[336540390,1724931040049,-500.0,0.00019178,2]
[336540391,1724931040059,-152.35751854,0.00019178,2]
[336540392,1724931040069,-560.26,0.00019178,2]
[336540393,1724931040079,-500.0,0.00019178,2]
[336540394,1724931040089,-3582.51,0.00019178,2]